[Event "Titled Tuesday Blitz May 16 Early 2023"]
[White "Skaric, Djuro"]
[Black "Ibadov, Dashgyn"]
[WhiteFideId "934569"]
[BlackFideId "24107514"]
[WhiteElo "2282"]
[BlackElo "2208"]
[Result "0-1"]
[Round "03"]
[TimeControl "180+2"]
[Date "2023.05.16"]
[WhiteClock "0:00:21"]
[BlackClock "0:01:19"]

1. g3 {[%clk 0:03:00]}  d5 {[%clk 0:02:59]} 2. Bg2 {[%clk 0:03:01]}  Nf6 {[%clk 0:02:56]} 3. d3 {[%clk 0:03:01]}  c5 {[%clk 0:02:53]} 4. Nf3 {[%clk 0:03:02]}  Nc6 {[%clk 0:02:53]} 5. O-O {[%clk 0:03:02]}  g6 {[%clk 0:02:53]} 6. Nc3 {[%clk 0:03:03]}  Bg7 {[%clk 0:02:53]} 7. e4 {[%clk 0:03:03]}  e6 {[%clk 0:02:51]} 8. h3 {[%clk 0:03:02]}  O-O {[%clk 0:02:51]} 9. g4 {[%clk 0:03:02]}  a6 {[%clk 0:02:36]} 10. a4 {[%clk 0:03:01]}  Nb4 {[%clk 0:02:32]} 11. Bf4 {[%clk 0:02:57]}  Nd7 {[%clk 0:02:19]} 12. Nd2 {[%clk 0:02:31]}  e5 {[%clk 0:02:13]} 13. Bg3 {[%clk 0:02:29]}  d4 {[%clk 0:02:07]} 14. Nd5 {[%clk 0:02:24]}  Bh6 {[%clk 0:02:05]} 15. Nxb4 {[%clk 0:02:22]}  cxb4 {[%clk 0:02:05]} 16. Nc4 {[%clk 0:02:19]}  Qg5 {[%clk 0:01:56]} 17. a5 {[%clk 0:02:14]}  Qe7 {[%clk 0:01:54]} 18. h4 {[%clk 0:02:09]}  Bf4 {[%clk 0:01:54]} 19. g5 {[%clk 0:02:06]}  Nc5 {[%clk 0:01:49]} 20. Nb6 {[%clk 0:01:59]}  Rb8 {[%clk 0:01:44]} 21. Nxc8 {[%clk 0:01:54]}  Rbxc8 {[%clk 0:01:43]} 22. Qf3 {[%clk 0:01:51]}  Qd6 {[%clk 0:01:37]} 23. b3 {[%clk 0:01:44]}  Ne6 {[%clk 0:01:34]} 24. Bh3 {[%clk 0:01:40]}  Rxc2 {[%clk 0:01:30]} 25. Bxf4 {[%clk 0:01:37]}  Nxf4 {[%clk 0:01:30]} 26. Bg4 {[%clk 0:01:20]}  Rc3 {[%clk 0:01:30]} 27. Rfd1 {[%clk 0:01:19]}  Rxb3 {[%clk 0:01:30]} 28. Rac1 {[%clk 0:01:18]}  Rc3 {[%clk 0:01:30]} 29. Rb1 {[%clk 0:01:18]}  Qc5 {[%clk 0:01:22]} 30. h5 {[%clk 0:01:16]}  Qxa5 {[%clk 0:01:21]} 31. h6 {[%clk 0:01:15]}  Qc5 {[%clk 0:01:20]} 32. Kh2 {[%clk 0:01:11]}  Qe7 {[%clk 0:01:19]} 33. Rb2 {[%clk 0:01:07]}  a5 {[%clk 0:01:19]} 34. Ra2 {[%clk 0:00:21]}  b6 {[%clk 0:01:19]} 0-1


[Site "https://www.chess.com"]

[Event "Titled Tuesday Blitz May 16 Early 2023"]
[White "Llanos, Guillermo"]
[Black "Al-Tarboush, Ward"]
[WhiteFideId "100358"]
[BlackFideId "7601450"]
[WhiteElo "2225"]
[BlackElo "2265"]
[Result "0-1"]
[Round "03"]
[TimeControl "180+2"]
[Date "2023.05.16"]
[WhiteClock "0:00:43"]
[BlackClock "0:02:12"]

1. Nf3 {[%clk 0:03:00]}  Nf6 {[%clk 0:02:58]} 2. b3 {[%clk 0:02:52]}  c5 {[%clk 0:02:57]} 3. Bb2 {[%clk 0:02:49]}  Nc6 {[%clk 0:02:58]} 4. g3 {[%clk 0:02:47]}  d6 {[%clk 0:02:58]} 5. Bg2 {[%clk 0:02:46]}  e5 {[%clk 0:02:58]} 6. O-O {[%clk 0:02:45]}  h6 {[%clk 0:02:57]} 7. c4 {[%clk 0:02:45]}  e4 {[%clk 0:02:56]} 8. Ne1 {[%clk 0:02:44]}  Bf5 {[%clk 0:02:56]} 9. Nc2 {[%clk 0:02:44]}  Be7 {[%clk 0:02:56]} 10. Ne3 {[%clk 0:02:44]}  Bg6 {[%clk 0:02:56]} 11. Nc3 {[%clk 0:02:43]}  O-O {[%clk 0:02:56]} 12. Qb1 {[%clk 0:02:29]}  Nd4 {[%clk 0:02:55]} 13. Re1 {[%clk 0:02:25]}  Re8 {[%clk 0:02:54]} 14. Nxe4 {[%clk 0:02:14]}  Bf8 {[%clk 0:02:52]} 15. Nxf6+ {[%clk 0:02:13]}  Qxf6 {[%clk 0:02:53]} 16. d3 {[%clk 0:02:12]}  Bh5 {[%clk 0:02:26]} 17. Nd5 {[%clk 0:02:00]}  Qd8 {[%clk 0:02:27]} 18. Bxd4 {[%clk 0:01:58]}  cxd4 {[%clk 0:02:27]} 19. Nf4 {[%clk 0:01:58]}  Bg4 {[%clk 0:02:25]} 20. Bxb7 {[%clk 0:01:49]}  g5 {[%clk 0:02:25]} 21. Bxa8 {[%clk 0:01:44]}  gxf4 {[%clk 0:02:25]} 22. Bf3 {[%clk 0:01:40]}  f5 {[%clk 0:02:23]} 23. Qc1 {[%clk 0:01:34]}  fxg3 {[%clk 0:02:21]} 24. hxg3 {[%clk 0:01:34]}  Qf6 {[%clk 0:02:16]} 25. Qf4 {[%clk 0:01:32]}  h5 {[%clk 0:02:14]} 26. Bd5+ {[%clk 0:01:27]}  Kh8 {[%clk 0:02:14]} 27. f3 {[%clk 0:01:23]}  Bh6 {[%clk 0:02:14]} 28. fxg4 {[%clk 0:01:10]}  Bxf4 {[%clk 0:02:14]} 29. gxf4 {[%clk 0:01:10]}  Qh4 {[%clk 0:02:14]} 30. gxf5 {[%clk 0:00:59]}  Qg3+ {[%clk 0:02:13]} 31. Kf1 {[%clk 0:00:57]}  Qxf4+ {[%clk 0:02:13]} 32. Bf3 {[%clk 0:00:43]}  Rg8 {[%clk 0:02:12]} 0-1


[Site "https://www.chess.com"]

[Event "Titled Tuesday Blitz May 16 Early 2023"]
[White "Hajiyev, Kanan"]
[Black "Jakic, Ivan"]
[WhiteFideId "13404148"]
[BlackFideId "14504901"]
[WhiteElo "2103"]
[BlackElo "2370"]
[Result "1-0"]
[Round "03"]
[TimeControl "180+2"]
[Date "2023.05.16"]
[WhiteClock "0:00:16"]
[BlackClock "0:00:28"]

1. d4 {[%clk 0:02:51]}  Nf6 {[%clk 0:03:00]} 2. Nf3 {[%clk 0:02:51]}  e6 {[%clk 0:03:00]} 3. c4 {[%clk 0:02:52]}  Nc6 {[%clk 0:03:00]} 4. Nc3 {[%clk 0:02:50]}  Bb4 {[%clk 0:03:00]} 5. a3 {[%clk 0:02:49]}  Bxc3+ {[%clk 0:02:59]} 6. bxc3 {[%clk 0:02:49]}  d6 {[%clk 0:03:00]} 7. Qc2 {[%clk 0:02:48]}  Qe7 {[%clk 0:03:00]} 8. e4 {[%clk 0:02:44]}  e5 {[%clk 0:02:59]} 9. d5 {[%clk 0:02:44]}  Nb8 {[%clk 0:02:59]} 10. Bg5 {[%clk 0:02:41]}  Nbd7 {[%clk 0:02:59]} 11. a4 {[%clk 0:02:40]}  h6 {[%clk 0:02:59]} 12. Be3 {[%clk 0:02:39]}  b6 {[%clk 0:02:59]} 13. a5 {[%clk 0:02:39]}  Rb8 {[%clk 0:02:59]} 14. axb6 {[%clk 0:02:38]}  axb6 {[%clk 0:03:00]} 15. Bd3 {[%clk 0:02:37]}  O-O {[%clk 0:02:59]} 16. O-O {[%clk 0:02:37]}  Ng4 {[%clk 0:03:00]} 17. Bd2 {[%clk 0:02:34]}  Nc5 {[%clk 0:02:59]} 18. h3 {[%clk 0:02:34]}  Nf6 {[%clk 0:02:54]} 19. Be3 {[%clk 0:02:35]}  Nh5 {[%clk 0:02:53]} 20. Ra7 {[%clk 0:02:28]}  Nxd3 {[%clk 0:02:52]} 21. Qxd3 {[%clk 0:02:27]}  f5 {[%clk 0:02:53]} 22. Qb1 {[%clk 0:01:56]}  fxe4 {[%clk 0:02:51]} 23. Nd2 {[%clk 0:01:55]}  Bf5 {[%clk 0:02:51]} 24. Nxe4 {[%clk 0:01:53]}  Nf6 {[%clk 0:02:40]} 25. Nxf6+ {[%clk 0:01:45]}  Qxf6 {[%clk 0:02:36]} 26. Qb5 {[%clk 0:01:31]}  Qg6 {[%clk 0:02:31]} 27. Kh2 {[%clk 0:01:31]}  Bd3 {[%clk 0:02:16]} 28. Rfa1 {[%clk 0:01:27]}  Be4 {[%clk 0:02:11]} 29. Rg1 {[%clk 0:01:06]}  Rf7 {[%clk 0:02:10]} 30. Qc6 {[%clk 0:01:05]}  Rc8 {[%clk 0:02:01]} 31. Bxb6 {[%clk 0:01:03]}  Qf5 {[%clk 0:01:28]} 32. Be3 {[%clk 0:00:53]}  Rf6 {[%clk 0:01:19]} 33. Rxc7 {[%clk 0:00:47]}  Rxc7 {[%clk 0:01:19]} 34. Qxc7 {[%clk 0:00:48]}  Rg6 {[%clk 0:01:20]} 35. c5 {[%clk 0:00:34]}  Bxd5 {[%clk 0:01:16]} 36. cxd6 {[%clk 0:00:31]}  Qe4 {[%clk 0:01:16]} 37. g4 {[%clk 0:00:22]}  Qc4 {[%clk 0:00:38]} 38. Qxc4 {[%clk 0:00:22]}  Bxc4 {[%clk 0:00:38]} 39. Rd1 {[%clk 0:00:22]}  Bb5 {[%clk 0:00:35]} 40. d7 {[%clk 0:00:23]}  Bxd7 {[%clk 0:00:35]} 41. Rxd7 {[%clk 0:00:23]}  Rc6 {[%clk 0:00:36]} 42. Rd3 {[%clk 0:00:21]}  Kf7 {[%clk 0:00:36]} 43. f3 {[%clk 0:00:20]}  Ke6 {[%clk 0:00:37]} 44. Kg3 {[%clk 0:00:20]}  Rc4 {[%clk 0:00:37]} 45. Kf2 {[%clk 0:00:20]}  g5 {[%clk 0:00:37]} 46. Ke2 {[%clk 0:00:20]}  Ra4 {[%clk 0:00:37]} 47. Bd2 {[%clk 0:00:19]}  Ra1 {[%clk 0:00:36]} 48. Be1 {[%clk 0:00:20]}  Ra2+ {[%clk 0:00:36]} 49. Rd2 {[%clk 0:00:20]}  Ra3 {[%clk 0:00:37]} 50. Rc2 {[%clk 0:00:20]}  Kd5 {[%clk 0:00:36]} 51. c4+ {[%clk 0:00:21]}  Kc6 {[%clk 0:00:37]} 52. Bf2 {[%clk 0:00:21]}  Ra1 {[%clk 0:00:36]} 53. h4 {[%clk 0:00:20]}  Rh1 {[%clk 0:00:34]} 54. hxg5 {[%clk 0:00:17]}  hxg5 {[%clk 0:00:35]} 55. Be3 {[%clk 0:00:17]}  Rh2+ {[%clk 0:00:34]} 56. Kd3 {[%clk 0:00:18]}  Rh3 {[%clk 0:00:30]} 57. Ke4 {[%clk 0:00:18]}  Rh8 {[%clk 0:00:30]} 58. Bxg5 {[%clk 0:00:18]}  Re8 {[%clk 0:00:29]} 59. Bf6 {[%clk 0:00:16]}  Re6 {[%clk 0:00:29]} 60. Bxe5 {[%clk 0:00:16]}  Re8 {[%clk 0:00:30]} 61. g5 {[%clk 0:00:17]}  Rf8 {[%clk 0:00:30]} 62. g6 {[%clk 0:00:16]}  Rg8 {[%clk 0:00:31]} 63. g7 {[%clk 0:00:17]}  Rxg7 {[%clk 0:00:28]} 64. Bxg7 {[%clk 0:00:16]} 1-0


[Site "https://www.chess.com"]

[Event "Titled Tuesday Blitz May 16 Early 2023"]
[White "Maung, Maung Kyaw Zaw Hein"]
[Black "Seinw1"]
[WhiteFideId "13001698"]
[WhiteElo "2019"]
[BlackElo "2566"]
[Result "0-1"]
[Round "03"]
[TimeControl "180+2"]
[Date "2023.05.16"]
[WhiteClock "0:00:16"]
[BlackClock "0:00:39"]

1. Nf3 {[%clk 0:03:00]}  Nf6 {[%clk 0:02:59]} 2. c4 {[%clk 0:03:01]}  e6 {[%clk 0:03:00]} 3. Nc3 {[%clk 0:03:01]}  d5 {[%clk 0:03:00]} 4. d4 {[%clk 0:03:01]}  c5 {[%clk 0:03:00]} 5. cxd5 {[%clk 0:03:01]}  cxd4 {[%clk 0:03:00]} 6. Nxd4 {[%clk 0:03:01]}  Nxd5 {[%clk 0:02:58]} 7. Nxd5 {[%clk 0:02:48]}  exd5 {[%clk 0:02:54]} 8. g3 {[%clk 0:02:46]}  Nc6 {[%clk 0:02:51]} 9. Bg2 {[%clk 0:02:36]}  Qb6 {[%clk 0:02:31]} 10. Nb3 {[%clk 0:02:31]}  Be6 {[%clk 0:02:29]} 11. O-O {[%clk 0:02:22]}  Rd8 {[%clk 0:02:21]} 12. Be3 {[%clk 0:02:22]}  d4 {[%clk 0:02:15]} 13. Bxc6+ {[%clk 0:02:09]}  bxc6 {[%clk 0:02:14]} 14. Nxd4 {[%clk 0:01:36]}  Bc5 {[%clk 0:01:51]} 15. Nxe6 {[%clk 0:01:25]}  Rxd1 {[%clk 0:01:46]} 16. Bxc5 {[%clk 0:01:11]}  Rxf1+ {[%clk 0:01:45]} 17. Rxf1 {[%clk 0:01:09]}  Qa5 {[%clk 0:01:06]} 18. Nxg7+ {[%clk 0:00:58]}  Kd7 {[%clk 0:01:03]} 19. Rd1+ {[%clk 0:00:56]}  Kc8 {[%clk 0:00:59]} 20. b4 {[%clk 0:00:52]}  Qxa2 {[%clk 0:00:49]} 21. Nf5 {[%clk 0:00:44]}  Rd8 {[%clk 0:00:45]} 22. Ne7+ {[%clk 0:00:31]}  Kc7 {[%clk 0:00:44]} 23. Rxd8 {[%clk 0:00:32]}  Kxd8 {[%clk 0:00:44]} 24. Nxc6+ {[%clk 0:00:32]}  Kc7 {[%clk 0:00:41]} 25. Nxa7 {[%clk 0:00:28]}  Qxe2 {[%clk 0:00:40]} 26. b5 {[%clk 0:00:19]}  Kb7 {[%clk 0:00:40]} 27. b6 {[%clk 0:00:17]}  Qd1+ {[%clk 0:00:38]} 28. Kg2 {[%clk 0:00:16]}  Qd5+ {[%clk 0:00:39]} 0-1


[Site "https://www.chess.com"]

[Event "Titled Tuesday Blitz May 16 Early 2023"]
[White "Labussiere, Yago"]
[Black "Filgueira, Hernan"]
[WhiteFideId "2186969"]
[BlackFideId "101770"]
[WhiteElo "2160"]
[BlackElo "2363"]
[Result "1-0"]
[Round "03"]
[TimeControl "180+2"]
[Date "2023.05.16"]
[WhiteClock "0:00:36"]
[BlackClock "0:00:00"]

1. c4 {[%clk 0:03:00]}  e5 {[%clk 0:02:31]} 2. Nc3 {[%clk 0:03:00]}  Nf6 {[%clk 0:02:30]} 3. Nf3 {[%clk 0:03:00]}  Nc6 {[%clk 0:02:29]} 4. e3 {[%clk 0:03:00]}  Be7 {[%clk 0:02:28]} 5. d4 {[%clk 0:03:00]}  exd4 {[%clk 0:02:28]} 6. exd4 {[%clk 0:03:01]}  d5 {[%clk 0:02:28]} 7. h3 {[%clk 0:02:55]}  O-O {[%clk 0:02:27]} 8. Bd3 {[%clk 0:02:53]}  Re8 {[%clk 0:02:23]} 9. O-O {[%clk 0:02:52]}  h6 {[%clk 0:02:20]} 10. a3 {[%clk 0:02:48]}  a6 {[%clk 0:02:18]} 11. cxd5 {[%clk 0:02:43]}  Nxd5 {[%clk 0:02:17]} 12. Bc2 {[%clk 0:02:44]}  Be6 {[%clk 0:02:11]} 13. Qd3 {[%clk 0:02:43]}  Nf6 {[%clk 0:02:10]} 14. Bf4 {[%clk 0:02:13]}  Qd7 {[%clk 0:02:05]} 15. Rad1 {[%clk 0:02:12]}  Rad8 {[%clk 0:02:04]} 16. Ne5 {[%clk 0:02:04]}  Nxe5 {[%clk 0:02:03]} 17. Bxe5 {[%clk 0:02:00]}  g6 {[%clk 0:02:01]} 18. Qg3 {[%clk 0:01:55]}  Nh5 {[%clk 0:01:57]} 19. Qh2 {[%clk 0:01:43]}  c6 {[%clk 0:01:41]} 20. g4 {[%clk 0:01:37]}  Ng7 {[%clk 0:01:40]} 21. Ne4 {[%clk 0:01:30]}  Rf8 {[%clk 0:01:21]} 22. Qf4 {[%clk 0:01:22]}  f5 {[%clk 0:01:18]} 23. Qxh6 {[%clk 0:01:22]}  Rf7 {[%clk 0:01:03]} 24. Ng5 {[%clk 0:01:16]}  Bxg5 {[%clk 0:01:00]} 25. Qxg5 {[%clk 0:01:17]}  Kh7 {[%clk 0:00:53]} 26. Qh4+ {[%clk 0:01:06]}  Kg8 {[%clk 0:00:53]} 27. Qh6 {[%clk 0:01:03]}  fxg4 {[%clk 0:00:33]} 28. Bxg6 {[%clk 0:01:02]}  Bf5 {[%clk 0:00:11]} 29. Qh7+ {[%clk 0:01:01]}  Kf8 {[%clk 0:00:12]} 30. Qh8+ {[%clk 0:01:02]}  Ke7 {[%clk 0:00:12]} 31. Qh4+ {[%clk 0:01:03]}  Ke6 {[%clk 0:00:11]} 32. Rfe1 {[%clk 0:00:43]}  Kd5 {[%clk 0:00:09]} 33. Bxf7+ {[%clk 0:00:40]}  Qxf7 {[%clk 0:00:06]} 34. Qxd8+ {[%clk 0:00:40]}  Kc4 {[%clk 0:00:00]} 35. Qb6 {[%clk 0:00:36]} 1-0


[Site "https://www.chess.com"]

[Event "Titled Tuesday Blitz May 16 Early 2023"]
[White "Rosh Jain"]
[Black "Erzhanov, Arman"]
[WhiteFideId "25789465"]
[BlackFideId "4138821"]
[WhiteElo "2233"]
[BlackElo "2138"]
[Result "0-1"]
[Round "03"]
[TimeControl "180+2"]
[Date "2023.05.16"]
[WhiteClock "0:00:16"]
[BlackClock "0:00:56"]

1. e4 {[%clk 0:03:00]}  d6 {[%clk 0:02:59]} 2. d4 {[%clk 0:03:00]}  Nf6 {[%clk 0:03:00]} 3. Nc3 {[%clk 0:02:59]}  c6 {[%clk 0:03:00]} 4. f4 {[%clk 0:02:59]}  d5 {[%clk 0:03:00]} 5. e5 {[%clk 0:02:58]}  Ng8 {[%clk 0:03:01]} 6. Bd3 {[%clk 0:02:56]}  h5 {[%clk 0:03:01]} 7. Nf3 {[%clk 0:02:55]}  Nh6 {[%clk 0:03:01]} 8. h3 {[%clk 0:02:52]}  g6 {[%clk 0:03:01]} 9. Be3 {[%clk 0:02:51]}  Bf5 {[%clk 0:03:01]} 10. Qd2 {[%clk 0:02:50]}  Bxd3 {[%clk 0:03:01]} 11. Qxd3 {[%clk 0:02:51]}  e6 {[%clk 0:03:01]} 12. O-O-O {[%clk 0:02:50]}  h4 {[%clk 0:03:01]} 13. Ne2 {[%clk 0:02:38]}  Nf5 {[%clk 0:03:01]} 14. Bf2 {[%clk 0:02:38]}  Nd7 {[%clk 0:03:00]} 15. g4 {[%clk 0:02:38]}  hxg3 {[%clk 0:03:00]} 16. Nxg3 {[%clk 0:02:38]}  Nxg3 {[%clk 0:02:59]} 17. Bxg3 {[%clk 0:02:39]}  Qa5 {[%clk 0:02:39]} 18. Kb1 {[%clk 0:02:38]}  Be7 {[%clk 0:02:38]} 19. h4 {[%clk 0:02:37]}  O-O-O {[%clk 0:02:38]} 20. Ng5 {[%clk 0:02:32]}  Rdf8 {[%clk 0:02:37]} 21. c3 {[%clk 0:02:18]}  Rh5 {[%clk 0:02:37]} 22. Qf3 {[%clk 0:01:56]}  Kb8 {[%clk 0:02:36]} 23. Bf2 {[%clk 0:01:52]}  Qd8 {[%clk 0:02:14]} 24. Rdf1 {[%clk 0:01:50]}  Qe8 {[%clk 0:02:13]} 25. Qg4 {[%clk 0:01:45]}  Rfh8 {[%clk 0:02:13]} 26. Be1 {[%clk 0:01:44]}  Nb6 {[%clk 0:02:12]} 27. Bd2 {[%clk 0:01:28]}  Bd8 {[%clk 0:02:11]} 28. Bc1 {[%clk 0:01:25]}  Nc4 {[%clk 0:02:10]} 29. b3 {[%clk 0:01:25]}  Nb6 {[%clk 0:02:11]} 30. Ba3 {[%clk 0:01:25]}  Be7 {[%clk 0:02:08]} 31. Bb2 {[%clk 0:01:22]}  Nc8 {[%clk 0:02:08]} 32. Rf3 {[%clk 0:01:20]}  Bf8 {[%clk 0:02:07]} 33. a4 {[%clk 0:01:03]}  Ne7 {[%clk 0:02:07]} 34. Ba3 {[%clk 0:00:49]}  Nf5 {[%clk 0:02:07]} 35. Bxf8 {[%clk 0:00:49]}  Qxf8 {[%clk 0:02:01]} 36. Rfh3 {[%clk 0:00:48]}  Kc8 {[%clk 0:01:47]} 37. Kb2 {[%clk 0:00:48]}  Kd8 {[%clk 0:01:48]} 38. Ka2 {[%clk 0:00:28]}  Ke8 {[%clk 0:01:48]} 39. Kb2 {[%clk 0:00:28]}  Qe7 {[%clk 0:01:46]} 40. Ka2 {[%clk 0:00:28]}  Kf8 {[%clk 0:01:46]} 41. Kb2 {[%clk 0:00:27]}  Kg7 {[%clk 0:01:47]} 42. Ka2 {[%clk 0:00:27]}  Qd8 {[%clk 0:01:46]} 43. b4 {[%clk 0:00:26]}  b6 {[%clk 0:01:45]} 44. Kb2 {[%clk 0:00:26]}  Qc7 {[%clk 0:01:43]} 45. Kc2 {[%clk 0:00:26]}  Rc8 {[%clk 0:01:43]} 46. Kd2 {[%clk 0:00:26]}  c5 {[%clk 0:01:43]} 47. Rg1 {[%clk 0:00:26]}  Qd7 {[%clk 0:01:11]} 48. Nxe6+ {[%clk 0:00:24]}  Qxe6 {[%clk 0:01:08]} 49. Qxh5 {[%clk 0:00:23]}  cxd4 {[%clk 0:01:08]} 50. Rf3 {[%clk 0:00:21]}  dxc3+ {[%clk 0:01:05]} 51. Rxc3 {[%clk 0:00:22]}  Rxc3 {[%clk 0:01:05]} 52. Kxc3 {[%clk 0:00:23]}  d4+ {[%clk 0:01:05]} 53. Kb2 {[%clk 0:00:20]}  d3 {[%clk 0:00:56]} 54. Qf3 {[%clk 0:00:19]}  Qc4 {[%clk 0:00:56]} 55. Rc1 {[%clk 0:00:17]}  Qxb4+ {[%clk 0:00:56]} 56. Ka2 {[%clk 0:00:17]}  Qxa4+ {[%clk 0:00:56]} 57. Kb2 {[%clk 0:00:17]}  Qb4+ {[%clk 0:00:56]} 58. Ka1 {[%clk 0:00:17]}  Qa3+ {[%clk 0:00:55]} 59. Kb1 {[%clk 0:00:17]}  Qb3+ {[%clk 0:00:56]} 60. Ka1 {[%clk 0:00:18]}  Nd4 {[%clk 0:00:56]} 61. Qe4 {[%clk 0:00:15]}  Nc2+ {[%clk 0:00:56]} 62. Rxc2 {[%clk 0:00:15]}  dxc2 {[%clk 0:00:56]} 63. Qe1 {[%clk 0:00:16]}  Qa3# {[%clk 0:00:56]} 0-1


[Site "https://www.chess.com"]

[Event "Titled Tuesday Blitz May 16 Early 2023"]
[White "Kamalidenova, Meruert"]
[Black "Rosenberg, Evan S"]
[WhiteFideId "13712802"]
[BlackFideId "2019299"]
[WhiteElo "2361"]
[BlackElo "2287"]
[Result "1-0"]
[Round "03"]
[TimeControl "180+2"]
[Date "2023.05.16"]
[WhiteClock "0:01:13"]
[BlackClock "0:00:06"]

1. e4 {[%clk 0:02:57]}  e5 {[%clk 0:02:59]} 2. Nf3 {[%clk 0:02:56]}  Nc6 {[%clk 0:03:00]} 3. d4 {[%clk 0:02:54]}  exd4 {[%clk 0:03:00]} 4. Nxd4 {[%clk 0:02:55]}  Bb4+ {[%clk 0:03:00]} 5. c3 {[%clk 0:02:54]}  Bc5 {[%clk 0:03:00]} 6. Be2 {[%clk 0:02:53]}  Qh4 {[%clk 0:02:34]} 7. O-O {[%clk 0:02:51]}  d6 {[%clk 0:02:19]} 8. g3 {[%clk 0:02:38]}  Qh3 {[%clk 0:02:14]} 9. Re1 {[%clk 0:02:31]}  Nge7 {[%clk 0:01:35]} 10. Bf1 {[%clk 0:02:25]}  Qd7 {[%clk 0:01:25]} 11. a4 {[%clk 0:02:18]}  a5 {[%clk 0:01:24]} 12. Nb5 {[%clk 0:02:14]}  O-O {[%clk 0:01:24]} 13. Bg2 {[%clk 0:02:13]}  Ne5 {[%clk 0:01:21]} 14. Be3 {[%clk 0:02:06]}  Bxe3 {[%clk 0:01:20]} 15. Rxe3 {[%clk 0:02:07]}  Nc4 {[%clk 0:01:18]} 16. Re2 {[%clk 0:02:07]}  c6 {[%clk 0:01:18]} 17. Nd4 {[%clk 0:02:06]}  Ng6 {[%clk 0:01:18]} 18. b3 {[%clk 0:02:06]}  Nb6 {[%clk 0:01:13]} 19. Nd2 {[%clk 0:02:05]}  Qc7 {[%clk 0:01:04]} 20. h3 {[%clk 0:02:00]}  d5 {[%clk 0:01:01]} 21. exd5 {[%clk 0:01:57]}  Nxd5 {[%clk 0:01:01]} 22. Qc2 {[%clk 0:01:54]}  Bd7 {[%clk 0:00:57]} 23. Rae1 {[%clk 0:01:54]}  Rae8 {[%clk 0:00:56]} 24. Ne4 {[%clk 0:01:53]}  b6 {[%clk 0:00:50]} 25. Qd2 {[%clk 0:01:39]}  h6 {[%clk 0:00:44]} 26. c4 {[%clk 0:01:39]}  Nb4 {[%clk 0:00:42]} 27. c5 {[%clk 0:01:39]}  Rxe4 {[%clk 0:00:36]} 28. Rxe4 {[%clk 0:01:38]}  bxc5 {[%clk 0:00:36]} 29. Nf3 {[%clk 0:01:32]}  Bf5 {[%clk 0:00:36]} 30. Re8 {[%clk 0:01:32]}  Rxe8 {[%clk 0:00:36]} 31. Rxe8+ {[%clk 0:01:32]}  Kh7 {[%clk 0:00:36]} 32. Qc3 {[%clk 0:01:26]}  Qd7 {[%clk 0:00:34]} 33. Re1 {[%clk 0:01:26]}  Qd6 {[%clk 0:00:30]} 34. Ne5 {[%clk 0:01:22]}  Nxe5 {[%clk 0:00:27]} 35. Qxe5 {[%clk 0:01:23]}  Qg6 {[%clk 0:00:18]} 36. Qb8 {[%clk 0:01:17]}  Bc2 {[%clk 0:00:12]} 37. Re8 {[%clk 0:01:16]}  Qf6 {[%clk 0:00:09]} 38. Rh8+ {[%clk 0:01:13]}  Kg6 {[%clk 0:00:09]} 39. Rd8 {[%clk 0:01:13]}  h5 {[%clk 0:00:06]} 40. Rd6 {[%clk 0:01:13]} 1-0


[Site "https://www.chess.com"]

[Event "Titled Tuesday Blitz May 16 Early 2023"]
[White "Jimenez Fernandez, Rebeca"]
[Black "Tologon tegin, Semetei"]
[WhiteFideId "32070934"]
[BlackFideId "13800574"]
[WhiteElo "2008"]
[BlackElo "2247"]
[Result "1-0"]
[Round "03"]
[TimeControl "180+2"]
[Date "2023.05.16"]
[WhiteClock "0:01:02"]
[BlackClock "0:00:20"]

1. e4 {[%clk 0:03:00]}  c5 {[%clk 0:02:56]} 2. Nc3 {[%clk 0:03:00]}  d6 {[%clk 0:02:56]} 3. g3 {[%clk 0:03:00]}  g6 {[%clk 0:02:56]} 4. Bg2 {[%clk 0:03:01]}  Bg7 {[%clk 0:02:56]} 5. d3 {[%clk 0:03:01]}  Nc6 {[%clk 0:02:57]} 6. Be3 {[%clk 0:03:01]}  e6 {[%clk 0:02:56]} 7. Qd2 {[%clk 0:03:01]}  Nd4 {[%clk 0:02:56]} 8. Nd1 {[%clk 0:03:00]}  h5 {[%clk 0:02:51]} 9. c3 {[%clk 0:02:59]}  Nc6 {[%clk 0:02:51]} 10. h3 {[%clk 0:02:56]}  Nge7 {[%clk 0:02:49]} 11. f4 {[%clk 0:02:55]}  b5 {[%clk 0:02:47]} 12. Nf3 {[%clk 0:02:55]}  b4 {[%clk 0:02:45]} 13. O-O {[%clk 0:02:53]}  bxc3 {[%clk 0:02:45]} 14. bxc3 {[%clk 0:02:53]}  Rb8 {[%clk 0:02:45]} 15. d4 {[%clk 0:02:41]}  cxd4 {[%clk 0:02:44]} 16. Nxd4 {[%clk 0:02:41]}  Ba6 {[%clk 0:02:41]} 17. Rf2 {[%clk 0:02:36]}  O-O {[%clk 0:02:35]} 18. Nxc6 {[%clk 0:02:33]}  Nxc6 {[%clk 0:02:35]} 19. f5 {[%clk 0:02:33]}  Ne5 {[%clk 0:02:29]} 20. Bh6 {[%clk 0:02:32]}  Qb6 {[%clk 0:02:17]} 21. f6 {[%clk 0:02:24]}  Bxf6 {[%clk 0:01:55]} 22. Bxf8 {[%clk 0:02:19]}  Rxf8 {[%clk 0:01:53]} 23. Kh1 {[%clk 0:02:15]}  Bg7 {[%clk 0:01:49]} 24. Ne3 {[%clk 0:02:14]}  Rc8 {[%clk 0:01:45]} 25. Bf1 {[%clk 0:01:54]}  Bb7 {[%clk 0:01:41]} 26. Bg2 {[%clk 0:01:47]}  Nc4 {[%clk 0:01:35]} 27. Nxc4 {[%clk 0:01:44]}  Rxc4 {[%clk 0:01:35]} 28. Raf1 {[%clk 0:01:40]}  Bxc3 {[%clk 0:01:28]} 29. Qg5 {[%clk 0:01:17]}  Qc7 {[%clk 0:00:31]} 30. Rxf7 {[%clk 0:01:10]}  Qxf7 {[%clk 0:00:31]} 31. Qd8+ {[%clk 0:01:05]}  Kg7 {[%clk 0:00:31]} 32. Rxf7+ {[%clk 0:01:03]}  Kxf7 {[%clk 0:00:20]} 33. Qd7+ {[%clk 0:01:02]} 1-0


[Site "https://www.chess.com"]